[Event "Elitserien 2019/2020, round 7-9"]
[Site "Elite stadshotellet, Kungsgatan 6, Vaxjo, Sweden"]
[Date "2020.10.18"]
[Round "3.2"]
[White "Grigorov, Grigor"]
[Black "Brynell, Stellan"]
[Result "1/2-1/2"]
[TimeControl "90 minutes for 40 moves + 30 minutes for the rest of the game + 30 seconds per move from move one."]
[WhiteTitle "GM"]
[BlackTitle "GM"]
[WhiteFideId "2907313"]
[BlackFideId "1700219"]
[WhiteElo "2507"]
[BlackElo "2409"]

1. c4 {[%clk 01:30:53]} {[%emt 00:00:06]} Nf6 {[%clk 01:30:22]} {[%emt
00:00:39]} 2. g3 {[%clk 01:31:14]} {[%emt 00:00:09]} e5 {[%clk 01:29:18]}
{[%emt 00:01:34]} 3. Bg2 {[%clk 01:31:20]} {[%emt 00:00:24]} h6 {[%clk
01:28:35]} {[%emt 00:01:14]} 4. Nf3 {[%clk 01:24:43]} {[%emt 00:07:07]} e4
{[%clk 01:22:45]} {[%emt 00:06:19]} 5. Nd4 {[%clk 01:24:58]} {[%emt 00:00:16]}
Nc6 {[%clk 01:18:22]} {[%emt 00:04:54]} 6. Nc2 {[%clk 01:25:14]} {[%emt
00:00:13]} Bc5 {[%clk 01:12:24]} {[%emt 00:06:27]} 7. Nc3 {[%clk 01:24:06]}
{[%emt 00:01:38]} Qe7 {[%clk 01:11:19]} {[%emt 00:01:35]} 8. O-O {[%clk
01:23:30]} {[%emt 00:01:07]} d6 {[%clk 01:08:39]} {[%emt 00:03:10]} 9. d4
{[%clk 01:20:19]} {[%emt 00:03:40]} exd3 {[%clk 01:05:06]} {[%emt 00:04:03]} 10.
exd3 {[%clk 01:16:41]} {[%emt 00:04:07]} Bg4 {[%clk 01:04:55]} {[%emt
00:00:41]} 11. Qd2 {[%clk 01:15:45]} {[%emt 00:01:25]} O-O {[%clk 01:04:34]}
{[%emt 00:00:53]} 12. d4 {[%clk 01:14:45]} {[%emt 00:01:29]} Bb6 {[%clk
01:01:20]} {[%emt 00:03:45]} 13. b4 {[%clk 01:10:56]} {[%emt 00:04:18]} a6
{[%clk 00:51:30]} {[%emt 00:10:20]} 14. Bb2 {[%clk 01:05:03]} {[%emt 00:06:23]}
Qd7 {[%clk 00:50:32]} {[%emt 00:01:28]} 15. Rfe1 {[%clk 00:51:54]} {[%emt
00:13:39]} Rfe8 {[%clk 00:42:01]} {[%emt 00:09:01]} 16. a4 {[%clk 00:37:34]}
{[%emt 00:14:49]} Bf5 {[%clk 00:36:33]} {[%emt 00:05:58]} 17. Rxe8+ {[%clk
00:35:34]} {[%emt 00:02:30]} Rxe8 {[%clk 00:36:49]} {[%emt 00:00:15]} 18. a5
{[%clk 00:35:52]} {[%emt 00:00:12]} Ba7 {[%clk 00:31:47]} {[%emt 00:05:32]} 19.
b5 {[%clk 00:36:09]} {[%emt 00:00:13]} Nxa5 {[%clk 00:23:01]} {[%emt 00:09:16]}
20. Rxa5 {[%clk 00:36:32]} {[%emt 00:00:07]} Bxc2 {[%clk 00:23:18]} {[%emt
00:00:14]} 21. Bxb7 {[%clk 00:35:34]} {[%emt 00:01:27]} Qf5 {[%clk 00:21:30]}
{[%emt 00:02:18]} 22. Rxa6 {[%clk 00:31:52]} {[%emt 00:04:12]} Bb6 {[%clk
00:19:46]} {[%emt 00:02:14]} 23. Bc6 {[%clk 00:25:28]} {[%emt 00:06:53]} Re7
{[%clk 00:18:46]} {[%emt 00:01:30]} 24. c5 {[%clk 00:15:13]} {[%emt 00:10:45]}
dxc5 {[%clk 00:18:40]} {[%emt 00:00:36]} 25. d5 {[%clk 00:15:39]} {[%emt
00:00:04]} Qd3 {[%clk 00:12:42]} {[%emt 00:06:27]} 26. Qxd3 {[%clk 00:15:41]}
{[%emt 00:00:28]} Bxd3 {[%clk 00:13:10]} {[%emt 00:00:03]} 27. d6 {[%clk
00:15:15]} {[%emt 00:00:56]} Re1+ {[%clk 00:11:47]} {[%emt 00:01:53]} 28. Kg2
{[%clk 00:15:39]} {[%emt 00:00:06]} Bf1+ {[%clk 00:07:51]} {[%emt 00:04:26]} 29.
Kf3 {[%clk 00:16:01]} {[%emt 00:00:07]} Bh3 {[%clk 00:07:47]} {[%emt 00:00:35]}
30. Nd5 {[%clk 00:10:12]} {[%emt 00:06:19]} Bg4+ {[%clk 00:03:07]} {[%emt
00:05:10]} 31. Kg2 {[%clk 00:10:19]} {[%emt 00:00:23]} Nxd5 {[%clk 00:02:12]}
{[%emt 00:01:25]} 32. Bxd5 {[%clk 00:10:10]} {[%emt 00:00:39]} Re2 {[%clk
00:01:41]} {[%emt 00:01:02]} 33. dxc7 {[%clk 00:09:59]} {[%emt 00:00:40]} Bxc7
{[%clk 00:01:47]} {[%emt 00:00:24]} 34. Bc3 {[%clk 00:09:54]} {[%emt 00:00:35]}
Be6 {[%clk 00:00:36]} {[%emt 00:01:41]} 35. Bxe6 {[%clk 00:09:54]} {[%emt
00:00:30]} Rxe6 {[%clk 00:00:42]} {[%emt 00:00:25]} 36. Rxe6 fxe6 {[%clk
00:01:11]} 37. Kf3 {[%clk 00:09:11]} {[%emt 00:00:08]} Kf7 {[%clk 00:01:15]}
{[%emt 00:00:26]} 38. Ke4 {[%clk 00:09:36]} {[%emt 00:00:05]} g6 {[%clk
00:01:01]} {[%emt 00:00:44]} 39. Kd3 {[%clk 00:04:36]} {[%emt 00:05:30]} Ke7
{[%clk 00:00:40]} {[%emt 00:00:51]} 40. Kc4 {[%clk 00:04:32]} {[%emt 00:00:34]}
Bb6 {[%clk 00:00:55]} {[%emt 00:00:15]} 41. Be5 {[%clk 00:03:47]} {[%emt
00:01:15]} h5 {[%clk 00:26:28]} {[%emt 00:04:57]} 42. f3 {[%clk 00:31:46]}
{[%emt 00:02:31]} Kd7 {[%clk 00:25:57]} {[%emt 00:01:02]} 43. Kb3 {[%clk
00:31:16]} {[%emt 00:00:59]} Ke7 {[%clk 00:23:19]} {[%emt 00:03:08]} 44. Ka4
{[%clk 00:30:41]} {[%emt 00:01:04]} Kd7 {[%clk 00:23:39]} {[%emt 00:00:11]} 45.
Bc3 {[%clk 00:25:44]} {[%emt 00:05:26]} Kc7 {[%clk 00:16:57]} {[%emt 00:07:12]}
46. Kb3 {[%clk 00:12:16]} {[%emt 00:13:58]} Kd6 {[%clk 00:15:34]} {[%emt
00:01:52]} 47. Kc4 {[%clk 00:12:40]} {[%emt 00:00:07]} Kd7 {[%clk 00:14:44]}
{[%emt 00:01:20]} 48. Be5 {[%clk 00:10:20]} {[%emt 00:02:50]} Ke7 {[%clk
00:14:35]} {[%emt 00:00:38]} 49. Kd3 {[%clk 00:09:40]} {[%emt 00:01:10]} Kd7
{[%clk 00:14:23]} {[%emt 00:00:42]} 50. Kc4 {[%clk 00:07:49]} {[%emt 00:02:22]}
Ke7 {[%clk 00:14:32]} {[%emt 00:00:22]} 51. Kb3 {[%clk 00:07:58]} {[%emt
00:00:21]} Kd7 {[%clk 00:14:42]} {[%emt 00:00:19]} 52. Ka4 {[%clk 00:08:04]}
{[%emt 00:00:23]} Kd8 {[%clk 00:13:36]} {[%emt 00:01:37]} 53. f4 {[%clk
00:06:44]} {[%emt 00:01:50]} Kd7 {[%clk 00:12:25]} {[%emt 00:01:40]} 54. Bc3
{[%clk 00:05:55]} {[%emt 00:01:20]} Bc7 {[%clk 00:04:43]} {[%emt 00:08:12]} 55.
Ba5 {[%clk 00:05:29]} {[%emt 00:00:55]} Bb8 {[%clk 00:04:56]} {[%emt 00:00:18]}
56. Kb3 {[%clk 00:04:07]} {[%emt 00:01:52]} h4 {[%clk 00:04:25]} {[%emt
00:01:01]} 57. Kc4 {[%clk 00:02:54]} {[%emt 00:01:43]} hxg3 {[%clk 00:02:28]}
{[%emt 00:02:28]} 58. hxg3 {[%clk 00:03:19]} {[%emt 00:00:05]} e5 {[%clk
00:02:30]} {[%emt 00:00:27]} 59. Bd2 {[%clk 00:02:49]} {[%emt 00:00:59]} exf4
{[%clk 00:02:38]} {[%emt 00:00:23]} 60. gxf4 {[%clk 00:02:55]} {[%emt
00:00:24]} Bd6 {[%clk 00:00:59]} {[%emt 00:02:09]} 61. Kd5 {[%clk 00:03:01]}
{[%emt 00:00:24]} Be7 {[%clk 00:00:54]} {[%emt 00:00:35]} 62. b6 {[%clk
00:02:39]} {[%emt 00:00:52]} Bd6 {[%clk 00:00:35]} {[%emt 00:00:49]} 63. Be3
{[%clk 00:02:24]} {[%emt 00:00:45]} c4 {[%clk 00:00:44]} {[%emt 00:00:21]} 64.
Kxc4 {[%clk 00:01:51]} {[%emt 00:01:04]} Kc6 {[%clk 00:01:08]} {[%emt
00:00:05]} 65. Kd3 {[%clk 00:02:09]} {[%emt 00:00:12]} 1/2-1/2

[Event "Elitserien 2019/2020, round 7-9"]
[Site "Elite stadshotellet, Kungsgatan 6, Vaxjo, Sweden"]
[Date "2020.10.18"]
[Round "3.3"]
[White "Eklund, Joel"]
[Black "Bellon Lopez, Juan Manuel"]
[Result "1-0"]
[TimeControl "90 minutes for 40 moves + 30 minutes for the rest of the game + 30 seconds per move from move one."]
[BlackTitle "GM"]
[WhiteFideId "1705288"]
[BlackFideId "2200031"]
[WhiteElo "2216"]
[BlackElo "2348"]

1. d4 {[%clk 01:30:38]} {[%emt 00:00:11]} Nf6 {[%clk 01:30:53]} {[%emt
00:00:16]} 2. c4 {[%clk 01:29:13]} {[%emt 00:01:56]} a6 {[%clk 01:28:25]}
{[%emt 00:02:58]} 3. f3 {[%clk 01:25:46]} {[%emt 00:03:57]} c5 {[%clk
01:28:25]} {[%emt 00:00:30]} 4. d5 {[%clk 01:26:10]} {[%emt 00:00:06]} e5
{[%clk 01:28:24]} {[%emt 00:00:30]} 5. e4 {[%clk 01:25:43]} {[%emt 00:00:57]}
d6 {[%clk 01:28:25]} {[%emt 00:00:29]} 6. Nc3 {[%clk 01:25:12]} {[%emt
00:01:01]} Be7 {[%clk 01:28:28]} {[%emt 00:00:27]} 7. Be3 {[%clk 01:25:32]}
{[%emt 00:00:11]} O-O {[%clk 01:28:46]} {[%emt 00:00:12]} 8. Qd2 {[%clk
01:25:27]} {[%emt 00:00:35]} Ne8 {[%clk 01:25:50]} {[%emt 00:03:24]} 9. Bd3
{[%clk 01:24:10]} {[%emt 00:01:48]} Nd7 {[%clk 01:21:38]} {[%emt 00:04:42]} 10.
Nge2 {[%clk 01:23:47]} {[%emt 00:00:53]} Kh8 {[%clk 01:18:04]} {[%emt
00:04:03]} 11. g3 {[%clk 01:23:09]} {[%emt 00:01:08]} g6 {[%clk 01:13:56]}
{[%emt 00:04:38]} 12. h4 {[%clk 01:21:15]} {[%emt 00:02:24]} Ng7 {[%clk
01:13:35]} {[%emt 00:00:50]} 13. h5 {[%clk 01:18:46]} {[%emt 00:03:00]} Nxh5
{[%clk 01:13:13]} {[%emt 00:00:52]} 14. O-O-O {[%clk 01:17:20]} {[%emt
00:01:57]} b5 {[%clk 01:13:35]} {[%emt 00:00:07]} 15. g4 {[%clk 01:14:57]}
{[%emt 00:02:53]} Nhf6 {[%clk 01:06:32]} {[%emt 00:07:33]} 16. Ng3 {[%clk
01:14:28]} {[%emt 00:00:59]} bxc4 {[%clk 01:06:20]} {[%emt 00:00:42]} 17. Bc2
{[%clk 01:14:16]} {[%emt 00:00:42]} Nxg4 {[%clk 00:28:11]} {[%emt 00:38:39]} 18.
fxg4 {[%clk 01:13:52]} {[%emt 00:00:54]} Nf6 {[%clk 00:28:37]} {[%emt
00:00:03]} 19. g5 {[%clk 01:02:46]} {[%emt 00:11:37]} Ng4 {[%clk 00:26:51]}
{[%emt 00:02:16]} 20. Rh4 {[%clk 00:57:30]} {[%emt 00:05:45]} f6 {[%clk
00:17:48]} {[%emt 00:09:33]} 21. Rdh1 {[%clk 00:46:09]} {[%emt 00:11:51]} Rf7
{[%clk 00:17:39]} {[%emt 00:00:38]} 22. Nf5 {[%clk 00:43:42]} {[%emt 00:02:57]}
Nxe3 {[%clk 00:14:01]} {[%emt 00:04:09]} 23. Qh2 {[%clk 00:38:36]} {[%emt
00:05:36]} 1-0

[Event "Elitserien 2019/2020, round 7-9"]
[Site "Elite stadshotellet, Kungsgatan 6, Vaxjo, Sweden"]
[Date "2020.10.18"]
[Round "3.4"]
[White "Cramling, Pia"]
[Black "Lindgren, Philip"]
[Result "0-1"]
[TimeControl "90 minutes for 40 moves + 30 minutes for the rest of the game + 30 seconds per move from move one."]
[WhiteTitle "GM"]
[BlackTitle "IM"]
[WhiteFideId "1700030"]
[BlackFideId "1713230"]
[WhiteElo "2470"]
[BlackElo "2356"]

1. d4 {[%clk 01:29:28]} {[%emt 00:01:31]} Nf6 {[%clk 01:30:36]} {[%emt
00:00:25]} 2. c4 {[%clk 01:29:31]} {[%emt 00:00:26]} e6 {[%clk 01:30:49]}
{[%emt 00:00:17]} 3. Nf3 {[%clk 01:29:42]} {[%emt 00:00:19]} d5 {[%clk
01:31:06]} {[%emt 00:00:13]} 4. Bg5 {[%clk 01:26:03]} {[%emt 00:04:09]} h6
{[%clk 01:29:17]} {[%emt 00:02:20]} 5. Bxf6 {[%clk 01:20:21]} {[%emt 00:06:12]}
Qxf6 {[%clk 01:29:19]} {[%emt 00:00:28]} 6. g3 {[%clk 01:15:12]} {[%emt
00:05:39]} c5 {[%clk 01:16:12]} {[%emt 00:13:38]} 7. cxd5 {[%clk 01:13:24]}
{[%emt 00:02:18]} exd5 {[%clk 01:14:50]} {[%emt 00:01:52]} 8. Nc3 {[%clk
01:13:18]} {[%emt 00:00:36]} Be6 {[%clk 01:04:40]} {[%emt 00:10:40]} 9. Bg2
{[%clk 01:06:29]} {[%emt 00:07:19]} Nc6 {[%clk 01:03:56]} {[%emt 00:01:14]} 10.
O-O {[%clk 01:05:57]} {[%emt 00:01:01]} cxd4 {[%clk 00:59:34]} {[%emt
00:04:52]} 11. Nb5 {[%clk 01:05:19]} {[%emt 00:01:08]} Rc8 {[%clk 00:58:39]}
{[%emt 00:01:26]} 12. Rc1 {[%clk 00:50:16]} {[%emt 00:15:32]} Be7 {[%clk
00:48:53]} {[%emt 00:10:17]} 13. Nfxd4 {[%clk 00:49:45]} {[%emt 00:01:00]} O-O
{[%clk 00:46:31]} {[%emt 00:02:52]} 14. e3 {[%clk 00:47:16]} {[%emt 00:02:58]}
a6 {[%clk 00:41:28]} {[%emt 00:05:34]} 15. Nxc6 {[%clk 00:44:21]} {[%emt
00:03:25]} Rxc6 {[%clk 00:38:52]} {[%emt 00:03:07]} 16. Nd4 {[%clk 00:44:04]}
{[%emt 00:00:46]} Rxc1 {[%clk 00:35:55]} {[%emt 00:03:27]} 17. Qxc1 {[%clk
00:44:27]} {[%emt 00:00:05]} Rc8 {[%clk 00:35:59]} {[%emt 00:00:28]} 18. Qd2
{[%clk 00:44:33]} {[%emt 00:00:23]} Rc5 {[%clk 00:23:09]} {[%emt 00:13:20]} 19.
Rd1 {[%clk 00:34:23]} {[%emt 00:10:40]} Qe5 {[%clk 00:21:36]} {[%emt 00:02:05]}
20. Qd3 {[%clk 00:18:42]} {[%emt 00:16:10]} Bg4 {[%clk 00:15:12]} {[%emt
00:06:54]} 21. Re1 {[%clk 00:17:23]} {[%emt 00:01:48]} Bf6 {[%clk 00:13:57]}
{[%emt 00:01:45]} 22. h3 {[%clk 00:17:03]} {[%emt 00:00:50]} Bd7 {[%clk
00:10:52]} {[%emt 00:03:35]} 23. Rd1 {[%clk 00:16:49]} {[%emt 00:00:43]} Qc7
{[%clk 00:10:28]} {[%emt 00:00:54]} 24. Rd2 {[%clk 00:10:55]} {[%emt 00:06:23]}
Bxd4 {[%clk 00:04:21]} {[%emt 00:06:38]} 25. Qxd4 {[%clk 00:10:30]} {[%emt
00:00:54]} Be6 {[%clk 00:04:41]} {[%emt 00:00:11]} 26. Kh2 {[%clk 00:09:09]}
{[%emt 00:01:51]} a5 {[%clk 00:04:37]} {[%emt 00:00:34]} 27. b3 {[%clk
00:08:32]} {[%emt 00:01:07]} b6 {[%clk 00:04:20]} {[%emt 00:00:48]} 28. h4
{[%clk 00:07:44]} {[%emt 00:01:17]} Rb5 {[%clk 00:01:57]} {[%emt 00:02:54]} 29.
Qd3 {[%clk 00:06:34]} {[%emt 00:01:39]} Rc5 {[%clk 00:02:21]} {[%emt 00:00:07]}
30. Bf3 {[%clk 00:04:27]} {[%emt 00:02:35]} Qe5 {[%clk 00:02:11]} {[%emt
00:00:40]} 31. Qa6 {[%clk 00:03:20]} {[%emt 00:01:35]} Qc3 {[%clk 00:01:05]}
{[%emt 00:01:38]} 32. Re2 {[%clk 00:02:49]} {[%emt 00:01:00]} b5 {[%clk
00:00:48]} {[%emt 00:00:49]} 33. Qd6 {[%clk 00:02:21]} {[%emt 00:00:57]} b4
{[%clk 00:00:44]} {[%emt 00:00:35]} 34. e4 {[%clk 00:02:07]} {[%emt 00:00:43]}
Qxf3 {[%clk 00:00:40]} {[%emt 00:00:34]} 35. Qxc5 {[%clk 00:02:14]} {[%emt
00:00:23]} Qxe2 {[%clk 00:01:03]} {[%emt 00:00:07]} 36. exd5 {[%clk 00:02:40]}
{[%emt 00:00:04]} Bf5 {[%clk 00:00:38]} {[%emt 00:00:56]} 37. d6 {[%clk
00:02:50]} {[%emt 00:00:20]} Qf3 {[%clk 00:00:36]} 0-1

[Event "Elitserien 2019/2020, round 7-9"]
[Site "Elite stadshotellet, Kungsgatan 6, Vaxjo, Sweden"]
[Date "2020.10.18"]
[Round "3.5"]
[White "Hogeman, Joel"]
[Black "Moreau, Teodor"]
[Result "1/2-1/2"]
[TimeControl "90 minutes for 40 moves + 30 minutes for the rest of the game + 30 seconds per move from move one."]
[BlackTitle "FM"]
[WhiteFideId "1724851"]
[BlackFideId "1701177"]
[WhiteElo "2175"]
[BlackElo "2342"]

1. e4 {[%clk 01:30:48]} {[%emt 00:00:11]} c5 {[%clk 01:30:39]} {[%emt
00:00:21]} 2. Nc3 {[%clk 01:31:04]} {[%emt 00:00:14]} Nc6 {[%clk 01:29:43]}
{[%emt 00:01:27]} 3. Bb5 {[%clk 01:30:38]} {[%emt 00:00:57]} g6 {[%clk
01:13:27]} {[%emt 00:16:45]} 4. Bxc6 {[%clk 01:29:42]} {[%emt 00:01:26]} dxc6
{[%clk 01:07:47]} {[%emt 00:06:10]} 5. d3 {[%clk 01:30:00]} {[%emt 00:00:11]}
e5 {[%clk 01:05:47]} {[%emt 00:02:30]} 6. f4 {[%clk 01:28:26]} {[%emt
00:02:04]} Qh4+ {[%clk 01:01:15]} {[%emt 00:05:02]} 7. g3 {[%clk 01:27:00]}
{[%emt 00:01:56]} Qe7 {[%clk 00:59:18]} {[%emt 00:02:27]} 8. Nf3 {[%clk
01:16:09]} {[%emt 00:11:21]} f6 {[%clk 00:48:16]} {[%emt 00:11:31]} 9. O-O
{[%clk 01:11:58]} {[%emt 00:04:41]} Bg4 {[%clk 00:42:09]} {[%emt 00:06:38]} 10.
fxe5 {[%clk 01:10:29]} {[%emt 00:01:59]} fxe5 {[%clk 00:41:49]} {[%emt
00:00:49]} 11. Qe1 {[%clk 01:08:27]} {[%emt 00:02:33]} Nf6 {[%clk 00:40:01]}
{[%emt 00:02:16]} 12. a3 {[%clk 01:00:44]} {[%emt 00:08:14]} Bg7 {[%clk
00:39:12]} {[%emt 00:01:18]} 13. Kg2 {[%clk 00:54:03]} {[%emt 00:07:11]} Qd7
{[%clk 00:34:40]} {[%emt 00:05:03]} 14. Ng1 {[%clk 00:48:56]} {[%emt 00:05:37]}
O-O {[%clk 00:31:25]} {[%emt 00:03:45]} 15. Be3 {[%clk 00:47:14]} {[%emt
00:02:11]} b6 {[%clk 00:30:54]} {[%emt 00:01:02]} 16. b3 {[%clk 00:46:50]}
{[%emt 00:00:54]} Be6 {[%clk 00:27:50]} {[%emt 00:03:32]} 17. h3 {[%clk
00:46:16]} {[%emt 00:01:05]} Nh5 {[%clk 00:27:25]} {[%emt 00:00:55]} 18. Qd2
{[%clk 00:44:04]} {[%emt 00:02:43]} Rad8 {[%clk 00:25:57]} {[%emt 00:01:57]} 19.
Bg5 {[%clk 00:32:19]} {[%emt 00:12:16]} Rde8 {[%clk 00:24:24]} {[%emt
00:02:04]} 20. Be3 {[%clk 00:26:09]} {[%emt 00:06:40]} Rd8 {[%clk 00:22:07]}
{[%emt 00:02:46]} 21. Bg5 {[%clk 00:22:59]} {[%emt 00:03:40]} Rde8 {[%clk
00:21:40]} {[%emt 00:00:57]} 22. Be3 {[%clk 00:22:49]} {[%emt 00:00:40]}
1/2-1/2

[Event "Elitserien 2019/2020, round 7-9"]
[Site "Elite stadshotellet, Kungsgatan 6, Vaxjo, Sweden"]
[Date "2020.10.18"]
[Round "3.6"]
[White "Wernberg, Hugo"]
[Black "Nylen, Anders"]
[Result "1/2-1/2"]
[TimeControl "90 minutes for 40 moves + 30 minutes for the rest of the game + 30 seconds per move from move one."]
[WhiteTitle "CM"]
[WhiteFideId "1737511"]
[BlackFideId "1701207"]
[WhiteElo "2063"]
[BlackElo "2188"]

1. e4 {[%clk 01:30:38]} {[%emt 00:00:22]} c5 {[%clk 01:30:51]} {[%emt
00:00:09]} 2. Nf3 {[%clk 01:30:18]} {[%emt 00:00:49]} d6 {[%clk 01:31:16]}
{[%emt 00:00:06]} 3. d4 {[%clk 01:30:43]} {[%emt 00:00:05]} cxd4 {[%clk
01:31:44]} {[%emt 00:00:02]} 4. Nxd4 {[%clk 01:31:05]} {[%emt 00:00:08]} Nf6
{[%clk 01:32:08]} {[%emt 00:00:05]} 5. Nc3 {[%clk 01:31:24]} {[%emt 00:00:11]}
a6 {[%clk 01:32:30]} {[%emt 00:00:08]} 6. Bg5 {[%clk 01:31:48]} {[%emt
00:00:06]} e6 {[%clk 01:32:50]} {[%emt 00:00:10]} 7. f4 {[%clk 01:32:12]}
{[%emt 00:00:06]} Be7 {[%clk 01:33:08]} {[%emt 00:00:12]} 8. Qf3 {[%clk
01:32:31]} {[%emt 00:00:11]} Qc7 {[%clk 01:33:23]} {[%emt 00:00:14]} 9. O-O-O
{[%clk 01:32:47]} {[%emt 00:00:13]} Nbd7 {[%clk 01:33:43]} {[%emt 00:00:10]} 10.
g4 {[%clk 01:33:08]} {[%emt 00:00:09]} b5 {[%clk 01:33:57]} {[%emt 00:00:16]}
11. Bxf6 {[%clk 01:33:25]} {[%emt 00:00:13]} gxf6 {[%clk 01:34:19]} {[%emt
00:00:09]} 12. f5 {[%clk 01:32:57]} {[%emt 00:00:58]} Ne5 {[%clk 01:34:38]}
{[%emt 00:00:10]} 13. Qh3 {[%clk 01:33:00]} {[%emt 00:00:28]} O-O {[%clk
01:34:51]} {[%emt 00:00:16]} 14. Rg1 {[%clk 01:32:43]} {[%emt 00:00:47]} Kh8
{[%clk 01:34:47]} {[%emt 00:00:34]} 15. Rg3 {[%clk 01:31:37]} {[%emt 00:01:36]}
Rg8 {[%clk 01:34:01]} {[%emt 00:01:15]} 16. Nce2 {[%clk 01:29:44]} {[%emt
00:02:25]} Bd7 {[%clk 01:33:16]} {[%emt 00:01:14]} 17. Nf4 {[%clk 01:25:29]}
{[%emt 00:04:46]} Rac8 {[%clk 01:31:36]} {[%emt 00:02:09]} 18. Kb1 {[%clk
01:21:17]} {[%emt 00:04:43]} Qb7 {[%clk 01:26:59]} {[%emt 00:05:06]} 19. Qh6
{[%clk 01:01:06]} {[%emt 00:20:42]} Nxg4 {[%clk 01:20:55]} {[%emt 00:06:34]} 20.
Qh4 {[%clk 00:56:18]} {[%emt 00:05:18]} Ne5 {[%clk 01:19:16]} {[%emt 00:02:09]}
21. Bh3 {[%clk 00:47:11]} {[%emt 00:09:37]} Rxg3 {[%clk 01:07:19]} {[%emt
00:12:26]} 22. hxg3 {[%clk 00:46:20]} {[%emt 00:01:22]} Rg8 {[%clk 01:05:52]}
{[%emt 00:01:56]} 23. Rh1 {[%clk 00:32:45]} {[%emt 00:14:05]} Rg7 {[%clk
01:04:42]} {[%emt 00:01:41]} 24. fxe6 {[%clk 00:15:18]} {[%emt 00:17:58]} fxe6
{[%clk 01:01:58]} {[%emt 00:03:14]} 25. Bxe6 {[%clk 00:10:23]} {[%emt
00:05:24]} Bxe6 {[%clk 00:54:31]} {[%emt 00:07:58]} 26. Nfxe6 {[%clk 00:08:34]}
{[%emt 00:02:19]} Rf7 {[%clk 00:52:30]} {[%emt 00:02:30]} 27. Nf5 {[%clk
00:08:05]} {[%emt 00:01:00]} Qc8 {[%clk 00:43:06]} {[%emt 00:09:53]} 28. Neg7
{[%clk 00:05:18]} {[%emt 00:03:18]} Qg8 {[%clk 00:42:52]} {[%emt 00:00:43]} 29.
Ne6 {[%clk 00:05:34]} {[%emt 00:00:15]} Qc8 {[%clk 00:41:49]} {[%emt 00:01:33]}
30. Neg7 {[%clk 00:05:53]} {[%emt 00:00:11]} Qg8 {[%clk 00:41:25]} {[%emt
00:00:53]} 31. Ne6 {[%clk 00:06:17]} {[%emt 00:00:07]} 1/2-1/2

[Event "Elitserien 2019/2020, round 7-9"]
[Site "Elite stadshotellet, Kungsgatan 6, Vaxjo, Sweden"]
[Date "2020.10.18"]
[Round "3.7"]
[White "Nilsson, Patrik"]
[Black "Nordstrom, Felix"]
[Result "1/2-1/2"]
[TimeControl "90 minutes for 40 moves + 30 minutes for the rest of the game + 30 seconds per move from move one."]
[BlackTitle "FM"]
[WhiteFideId "1708112"]
[BlackFideId "1701509"]
[WhiteElo "1949"]
[BlackElo "2096"]

1. b3 {[%clk 01:30:45]} {[%emt 00:00:13]} e5 {[%clk 01:30:26]} {[%emt
00:00:35]} 2. Bb2 {[%clk 01:31:04]} {[%emt 00:00:10]} d6 {[%clk 01:30:48]}
{[%emt 00:00:09]} 3. e3 {[%clk 01:30:44]} {[%emt 00:00:49]} Nf6 {[%clk
01:28:02]} {[%emt 00:03:17]} 4. Nf3 {[%clk 01:28:32]} {[%emt 00:02:42]} g6
{[%clk 01:24:45]} {[%emt 00:03:48]} 5. d4 {[%clk 01:25:51]} {[%emt 00:03:10]}
exd4 {[%clk 01:20:40]} {[%emt 00:04:35]} 6. exd4 {[%clk 01:24:43]} {[%emt
00:01:38]} Bg7 {[%clk 01:20:14]} {[%emt 00:00:56]} 7. Be2 {[%clk 01:24:08]}
{[%emt 00:01:03]} O-O {[%clk 01:20:31]} {[%emt 00:00:14]} 8. O-O {[%clk
01:24:11]} {[%emt 00:00:26]} Bg4 {[%clk 01:14:55]} {[%emt 00:06:07]} 9. c4
{[%clk 01:22:10]} {[%emt 00:02:29]} d5 {[%clk 01:13:21]} {[%emt 00:02:06]} 10.
h3 {[%clk 01:19:48]} {[%emt 00:02:50]} Bf5 {[%clk 01:09:28]} {[%emt 00:04:24]}
11. Nc3 {[%clk 01:15:34]} {[%emt 00:04:44]} c6 {[%clk 01:08:06]} {[%emt
00:01:53]} 12. Ne5 {[%clk 01:06:48]} {[%emt 00:09:15]} Nbd7 {[%clk 01:02:44]}
{[%emt 00:05:53]} 13. cxd5 {[%clk 01:02:23]} {[%emt 00:04:54]} Nxd5 {[%clk
01:00:54]} {[%emt 00:02:21]} 14. Nxd5 {[%clk 01:00:11]} {[%emt 00:02:41]} cxd5
{[%clk 00:59:52]} {[%emt 00:01:32]} 15. Bf3 {[%clk 00:56:08]} {[%emt 00:04:30]}
Be6 {[%clk 00:57:13]} {[%emt 00:03:11]} 16. Re1 {[%clk 00:52:30]} {[%emt
00:04:07]} Re8 {[%clk 00:56:21]} {[%emt 00:01:23]} 17. Qd2 {[%clk 00:48:00]}
{[%emt 00:05:00]} Nf8 {[%clk 00:51:29]} {[%emt 00:05:23]} 18. Rad1 {[%clk
00:43:32]} {[%emt 00:04:56]} Rc8 {[%clk 00:47:05]} {[%emt 00:04:56]} 19. Rc1
{[%clk 00:42:02]} {[%emt 00:01:59]} Qb6 {[%clk 00:37:34]} {[%emt 00:10:01]} 20.
Rxc8 {[%clk 00:37:13]} {[%emt 00:05:20]} Rxc8 {[%clk 00:37:34]} {[%emt
00:00:30]} 21. Rc1 {[%clk 00:36:51]} {[%emt 00:00:50]} Rxc1+ {[%clk 00:32:47]}
{[%emt 00:05:19]} 1/2-1/2